bitfinex/quotes_ETHUSD_20251015
["timestamp","ask_amount","ask_price","bid_price","bid_amount"]
[1760561113846,2.50576325,3990.8,3990.4,0.1248]
[1760561114056,2.50571142,3990.9,3990.4,0.1248]
[1760561114341,0.1248,3991.1,3990.4,0.1248]
[1760561114641,0.1248,3991.3,3990.6,0.1248]
[1760561115049,2.50544935,3991.3,3990.5,2.50593396]
[1760561115221,2.50545178,3991.3,3990.6,0.2505934]
[1760561115415,2.61429738,3991.4,3990.6,2.75641992]
[1760561115611,2.61429738,3991.4,3990.2,0.2222]
[1760561115612,0.1089,3991.4,3990.2,0.2222]
[1760561115834,0.1089,3991.4,3990.3,0.4502]
[1760561116143,0.1089,3991.4,3990.3,0.47526077]
[1760561116331,0.1089,3991.4,3990.4,0.02506014]
[1760561116533,0.3928584,3993.0,3991.3,0.2222]
[1760561116714,2.60362367,3992.8,3991.3,0.2222]
[1760561116915,1.728,3992.9,3991.3,0.2222]
[1760561117131,1.728,3992.9,3991.2,0.4502]
[1760561117132,2.50505844,3992.0,3991.2,2.50549374]
[1760561117331,2.63886898,3991.9,3990.7,2.728013]
[1760561117650,2.50526104,3991.6,3990.8,3.2737818]
[1760561117958,1.728,3992.4,3991.5,0.2222]
[1760561118258,1.728,3992.4,3990.9,0.4502]
[1760561118259,2.50520785,3991.7,3991.1,0.2222]
[1760561118558,2.61398283,3991.9,3991.1,2.72776529]
[1760561118766,2.50514334,3991.8,3991.0,2.5055953]
[1760561118977,2.50514334,3991.8,3990.2,2.72832333]
[1760561118978,0.02508669,3991.7,3990.2,0.2222]
[1760561119149,8.5,3991.3,3989.7,0.2222]
[1760561119451,8.5,3991.3,3989.5,2.95874734]
[1760561119452,2.50626566,3990.0,3989.5,0.002]
[1760561119633,2.5062211,3990.1,3989.5,0.002]
[1760561119813,2.50626566,3990.0,3989.5,0.002]
[1760561120018,2.60526566,3990.0,3989.5,0.002]
[1760561121754,2.60526566,3990.0,3989.5,1e-08]
[1760561121755,11.00651694,3989.6,3989.5,1e-08]
[1760561121951,12.73451694,3989.6,3989.5,1e-08]
[1760561122155,12.83361694,3989.6,3989.5,1e-08]
[1760561123552,13.05011694,3989.6,3989.5,1e-08]
[1760561123751,18.68161694,3989.6,3989.5,1e-08]
[1760561124255,3.14036827,3989.2,3989.1,0.002]
[1760561124494,24.05436774,3989.2,3989.1,0.002]
[1760561124664,24.39156347,3989.2,3989.1,0.002]
[1760561124864,24.39156347,3989.2,3985.9,0.2165]
[1760561124865,8.5,3987.7,3986.2,0.1248]
[1760561125078,0.1248,3986.8,3986.2,0.1248]
[1760561125456,1.75308669,3987.3,3986.1,0.2165]
[1760561125792,2.50865485,3986.2,3986.1,0.2165]
[1760561125967,2.50865485,3986.2,3985.9,0.2165]
[1760561126363,2.50827981,3986.8,3985.9,0.2165]
[1760561126569,2.50876012,3986.1,3985.4,0.4377]
[1760561126791,2.50876012,3986.1,3985.6,0.2165]
[1760561126982,0.02508669,3986.0,3985.6,0.6542]
[1760561127177,2.53389372,3986.0,3985.6,0.2165]
[1760561127377,2.50889207,3985.9,3985.6,0.2165]
[1760561127687,0.02508669,3986.5,3985.6,0.2165]
[1760561127893,0.099,3986.7,3985.0,0.2165]
[1760561127894,2.50909062,3985.6,3985.1,0.2165]
[1760561128055,2.50915842,3985.4,3985.1,0.2165]
[1760561128281,0.02508669,3985.3,3985.1,0.2165]
[1760561128519,1.8358,3985.9,3985.1,0.2165]
[1760561128719,0.1078,3985.9,3985.1,0.2165]
[1760561128918,2.5091021,3985.5,3985.1,0.2165]
[1760561129118,2.5091021,3985.5,3985.0,0.2165]
[1760561129119,2.50929246,3985.2,3985.0,0.2165]
[1760561129323,2.50922334,3985.3,3984.8,0.4377]
[1760561129889,2.50923352,3985.3,3984.8,0.4377]
[1760561130084,1.728,3985.8,3984.5,1e-08]
[1760561130325,8.5,3985.4,3984.5,1e-08]
[1760561130517,2.50966219,3984.6,3984.5,1e-08]
[1760561130906,2.5095845,3984.8,3984.5,1e-08]
[1760561131106,2.50947594,3984.9,3984.5,1e-08]
[1760561131309,8.5,3985.3,3984.5,1e-08]
[1760561131513,2.50956439,3984.8,3984.5,1e-08]
[1760561131830,11.728,3985.4,3984.5,1e-08]
[1760561131986,2.50966219,3984.6,3984.5,1e-08]
[1760561132714,2.50956348,3984.8,3984.5,1e-08]
[1760561132902,1.728,3985.3,3984.5,1e-08]
[1760561133242,1.728,3984.7,3984.5,0.43770001]
[1760561133390,1.728,3984.7,3984.5,1e-08]
[1760561133806,2.53474888,3984.6,3984.5,1e-08]
[1760561134587,2.50966219,3984.6,3984.5,1e-08]
[1760561135004,1.02709294,3986.4,3984.5,1e-08]
[1760561135204,8.5,3986.3,3984.5,0.43770001]
[1760561135490,2.50908841,3985.6,3985.1,0.1248]
[1760561135725,0.02508669,3985.5,3984.5,0.43770001]
[1760561135923,0.1248,3985.4,3984.7,0.1248]
[1760561136099,0.1248,3985.4,3984.8,0.46279536]
[1760561136303,0.1248,3985.7,3985.3,0.2165]
[1760561136522,0.1248,3985.9,3985.4,0.4377]
[1760561136727,0.1248,3985.9,3985.5,0.4377]
[1760561136923,2.50815872,3987.0,3985.3,0.3413]
[1760561136924,2.50857294,3986.4,3985.6,0.4377]
[1760561137112,0.1248,3986.3,3985.6,0.5625]
[1760561137314,0.1248,3986.3,3985.6,0.1248]
[1760561137628,0.1248,3986.3,3985.7,2.94662531]
[1760561137829,2.50882986,3986.0,3985.6,0.1248]
[1760561138319,0.13258669,3985.9,3985.3,0.2165]
[1760561138518,0.13258669,3985.9,3985.0,0.1248]
[1760561138519,0.1248,3985.7,3985.0,0.1248]
[1760561138717,0.1248,3985.7,3985.1,0.2165]
[1760561138920,2.50910169,3985.5,3985.1,0.2165]
[1760561139336,2.50910169,3985.5,3985.2,0.4377]
[1760561139698,2.50920075,3985.4,3985.1,0.2165]
[1760561140227,2.5092085,3985.4,3985.0,0.1248]
[1760561140434,2.5092085,3985.4,3985.1,0.2165]
[1760561141223,2.50924527,3985.3,3985.1,0.2165]
[1760561141426,2.50917938,3985.4,3985.1,0.2165]
[1760561141807,2.50933183,3985.2,3985.0,0.1248]
[1760561142335,2.5092431,3985.3,3985.0,0.1248]
[1760561142647,2.50934731,3985.1,3985.0,0.1248]
[1760561142818,0.02508669,3985.2,3985.0,0.1248]
[1760561143016,0.1248,3985.7,3985.1,0.2165]
[1760561143223,1.728,3986.0,3985.1,0.2165]
[1760561143224,2.50882165,3986.0,3985.2,0.4377]
[1760561143424,1.728,3986.1,3985.2,0.4377]
[1760561143425,1.728,3986.1,3985.2,0.76654091]
[1760561143624,2.63345925,3986.2,3985.5,2.63388396]
[1760561144026,0.1248,3986.5,3986.1,0.2165]
[1760561144228,0.1248,3986.5,3986.1,0.6542]
[1760561145215,0.1248,3986.5,3986.1,0.2165]
[1760561145448,2.50854878,3986.4,3985.8,0.1248]
[1760561145633,1.728,3986.3,3985.8,0.1248]
[1760561145832,1.728,3986.3,3985.1,0.002]
[1760561145833,2.50928435,3985.2,3985.1,0.002]
[1760561146021,1.728,3985.8,3985.1,0.002]
[1760561146219,2.50916596,3985.4,3985.1,0.2185]
[1760561146541,2.50928435,3985.2,3985.1,0.002]
[1760561147746,12.86207104,3985.2,3985.1,0.002]
[1760561148050,12.83698435,3985.2,3985.1,0.002]
[1760561149378,2.51016617,3983.8,3982.3,0.2165]
[1760561149574,12.73816617,3983.8,3982.3,0.2165]
[1760561149720,13.47146617,3983.8,3982.3,0.2165]
[1760561150768,12.83786617,3983.8,3982.3,0.2165]
[1760561150921,12.83786617,3983.8,3982.5,0.439]
[1760561151123,12.83786617,3983.8,3982.3,0.2165]
[1760561151368,13.47146617,3983.8,3982.3,0.2165]
[1760561151521,13.47146617,3983.8,3982.1,0.2149]
[1760561151721,13.47146617,3983.8,3982.1,0.6539]
[1760561152173,13.47146617,3983.8,3982.0,0.002]
[1760561152463,2.51123778,3982.1,3982.0,0.002]
[1760561152815,2.51123778,3982.1,3982.0,0.441]
[1760561153019,2.51123778,3982.1,3982.0,0.002]
[1760561153414,2.51099835,3982.5,3982.0,0.002]
[1760561153415,1.728,3982.5,3982.0,0.002]
[1760561153766,1.728,3983.5,3982.0,0.441]
[1760561154065,2.51093133,3982.6,3982.1,0.2149]
[1760561154221,2.71773274,3983.9,3982.2,0.439]
[1760561154222,1.728,3982.7,3982.2,0.439]
[1760561154554,2.51080557,3982.8,3982.3,0.439]
[1760561154733,1.728,3983.1,3982.4,0.439]
[1760561154949,1.728,3982.9,3982.4,0.439]
[1760561155462,1.728,3982.9,3982.4,0.4712]
[1760561155771,2.51075084,3982.9,3982.4,0.1248]
[1760561155922,2.51075084,3982.9,3982.5,0.4712]
[1760561156121,2.51075084,3982.9,3982.4,0.1248]
[1760561156122,1.728,3983.0,3982.6,0.4712]
[1760561156326,1.728,3983.1,3982.7,0.596]
[1760561156566,0.1248,3983.3,3982.8,0.4712]
[1760561156765,2.51046347,3983.4,3983.2,0.2283]
[1760561156920,0.1248,3983.5,3983.3,0.4712]
[1760561157274,1.827,3984.1,3982.5,0.4712]
[1760561157472,0.1087,3984.2,3982.1,0.2149]
[1760561157473,2.5109365,3982.6,3982.1,0.6861]
[1760561157619,11.87562329,3983.8,3982.1,0.6861]
[1760561157620,2.53611608,3982.5,3982.2,0.4712]
[1760561157825,1.728,3982.8,3982.1,0.2149]
[1760561158221,2.51123778,3982.1,3982.0,0.002]
[1760561158462,2.53632447,3982.1,3982.0,0.002]
[1760561158873,4.26432447,3982.1,3982.0,0.002]
[1760561159078,4.23923778,3982.1,3982.0,0.002]
[1760561159588,4.26432447,3982.1,3982.0,0.002]
[1760561159782,12.86332447,3982.1,3982.0,0.002]
[1760561160004,12.83823778,3982.1,3982.0,0.002]
[1760561160901,12.73923778,3982.1,3982.0,0.002]
[1760561161377,12.83823778,3982.1,3982.0,0.002]
[1760561161690,12.73949006,3981.7,3981.6,1e-08]
[1760561162067,13.47219006,3981.7,3981.6,1e-08]
[1760561165213,12.73949006,3981.7,3981.6,1e-08]
[1760561166511,13.47219006,3981.7,3981.6,1e-08]
[1760561167703,13.5729456,3981.7,3981.6,1e-08]
[1760561167997,5.0729456,3981.7,3981.6,1e-08]
[1760561168203,13.96685371,3981.7,3981.6,1e-08]
[1760561170101,2.51256281,3980.0,3979.9,0.6995]
[1760561170275,2.5128785,3979.5,3979.4,0.4712]
[1760561170596,2.5128785,3979.5,3979.4,0.6995]
[1760561170799,11.6188785,3979.5,3979.4,0.6995]
[1760561171297,4.2408785,3979.5,3979.4,0.6995]
[1760561171489,12.7408785,3979.5,3979.4,0.6995]
[1760561172269,1.728,3979.5,3979.4,0.6995]
[1760561172514,1.728,3980.6,3979.4,0.6995]
[1760561172679,1.728,3980.0,3979.5,0.4712]
[1760561172868,1.728,3981.3,3979.5,0.4712]
[1760561173067,1.728,3980.6,3979.5,0.4712]
[1760561173286,2.51281535,3979.6,3979.5,0.4712]
[1760561173703,2.53790204,3979.6,3979.5,0.4712]
[1760561173969,2.5128785,3979.5,3979.4,0.2283]
[1760561174797,1.728,3980.0,3979.4,0.6995]
[1760561175070,2.51281535,3979.6,3979.5,0.4712]
[1760561175477,2.51205787,3980.8,3979.5,0.4712]
[1760561175687,1.728,3980.7,3979.5,0.4712]
[1760561176001,12.74012098,3980.7,3980.6,0.2283]
[1760561177070,4.24037343,3980.3,3980.2,0.4712]
[1760561177271,4.24037343,3980.3,3980.2,0.6995]
[1760561177702,4.24037343,3980.3,3980.2,0.2283]
[1760561177904,4.24037343,3980.3,3980.2,0.6995]
[1760561178420,4.24037343,3980.3,3980.2,0.2283]
[1760561178574,4.24037343,3980.3,3980.2,0.6995]
[1760561178779,8.5,3981.4,3980.2,0.6995]
[1760561179078,2.51237343,3980.3,3980.2,0.6995]
[1760561180107,2.63797343,3980.3,3980.2,0.6995]
[1760561181617,0.1256,3980.3,3980.2,0.6995]
[1760561182214,1.728,3980.5,3980.2,0.6995]
[1760561182382,1.728,3980.6,3980.2,0.8251]
[1760561182721,2.51208968,3980.8,3980.3,0.446]
[1760561182882,2.51205787,3980.8,3980.3,0.446]
[1760561183089,2.51212472,3980.7,3980.3,0.446]
[1760561183406,0.1256,3980.9,3980.4,0.446]
[1760561183718,2.51205787,3980.8,3980.5,0.446]
[1760561183903,0.1256,3980.9,3980.6,0.446]
[1760561184104,2.51210947,3980.8,3980.6,0.446]
[1760561184303,0.02508669,3980.7,3980.4,0.1256]
[1760561184482,0.02508669,3980.7,3980.4,0.446]
[1760561184684,2.51206741,3980.8,3980.5,0.446]
[1760561184885,2.51218409,3980.6,3980.5,0.446]
[1760561186319,2.51212849,3980.7,3980.5,0.446]
[1760561186519,2.51212849,3980.7,3980.6,0.446]
[1760561186720,2.63762024,3980.9,3980.2,0.3539]
[1760561186721,2.51237343,3980.3,3980.2,0.3539]
[1760561186921,2.51243656,3980.2,3980.1,0.002]
[1760561187221,2.53752325,3980.2,3980.1,0.002]
[1760561187726,2.51243656,3980.2,3980.1,0.002]
[1760561188113,2.51243656,3980.2,3980.1,0.216]
[1760561188530,2.51243656,3980.2,3980.1,0.002]
[1760561189232,2.51243656,3980.2,3980.1,0.216]
[1760561190716,0.1256,3980.5,3980.1,0.662]
[1760561190930,2.51243656,3980.2,3980.1,0.216]
[1760561191299,0.1256,3980.5,3980.1,0.216]
[1760561191846,2.51231438,3980.4,3980.2,0.5716]
[1760561192002,0.1256,3980.9,3980.3,0.446]
[1760561192205,2.51223486,3980.6,3980.3,0.446]
[1760561192538,2.51210065,3980.8,3980.4,0.446]
[1760561192697,2.63761878,3980.9,3980.4,0.446]
[1760561192902,2.63761878,3980.9,3980.2,2.63802053]
[1760561192903,2.51213881,3980.7,3980.5,0.446]
[1760561193098,2.51206466,3980.8,3980.5,0.446]
[1760561193331,2.51206466,3980.8,3980.6,0.446]
[1760561193547,2.51206466,3980.8,3980.2,0.1256]
[1760561193548,0.02508669,3980.7,3980.2,0.1256]
[1760561193721,2.51243656,3980.2,3980.1,0.662]
[1760561193925,0.1256,3980.5,3980.1,0.662]
[1760561194229,2.5123753,3980.3,3980.1,0.662]
[1760561194744,0.1256,3980.5,3980.1,0.662]
[1760561194745,2.63786665,3980.5,3980.2,0.446]
[1760561194949,2.5123111,3980.4,3980.2,0.446]
[1760561195352,2.51237343,3980.3,3980.2,0.446]
[1760561195854,2.51243656,3980.2,3980.1,0.002]
[1760561196020,2.53752325,3980.2,3980.1,0.002]
[1760561196352,2.66312325,3980.2,3980.1,0.002]
[1760561196721,12.99062325,3980.2,3980.1,0.002]
[1760561197023,12.96553656,3980.2,3980.1,0.002]
[1760561199964,12.96553656,3980.2,3978.6,0.3396]
[1760561199965,2.51294164,3979.4,3979.3,1e-08]
[1760561200132,23.84794325,3979.4,3979.3,1e-08]
[1760561200338,23.94744325,3979.4,3979.3,1e-08]
[1760561200538,23.84794325,3979.4,3979.3,1e-08]
[1760561200933,12.74094164,3979.4,3979.3,1e-08]
[1760561201132,13.47404164,3979.4,3979.3,1e-08]
[1760561201338,23.94744325,3979.4,3979.3,1e-08]
[1760561201854,23.94744325,3979.4,3976.4,2.51482581]
[1760561201855,0.00200001,3978.4,3974.3,0.50958139]
[1760561202056,10.8616,3979.3,3975.6,0.214]
[1760561202057,4.24328032,3975.7,3975.6,0.214]
[1760561202429,4.24328032,3975.7,3975.6,0.66]
[1760561202631,2.51540686,3975.5,3975.3,0.214]
[1760561202835,2.54049355,3975.5,3975.3,0.214]
[1760561203163,2.54049355,3975.5,3975.1,0.446]
[1760561203370,2.54049355,3975.5,3975.1,0.66]
[1760561203653,2.54049355,3975.5,3974.6,0.216]
[1760561203654,13.37700686,3975.5,3974.6,0.216]
[1760561204031,13.47610686,3975.5,3974.6,0.002]
[1760561204346,13.37700686,3975.5,3974.6,0.002]
[1760561204742,13.47610686,3975.5,3974.6,0.002]
[1760561205257,13.37700686,3975.5,3974.6,0.002]
[1760561205458,12.74340686,3975.5,3974.6,0.448]
[1760561208620,4.24340686,3975.5,3974.6,0.002]
[1760561208828,1.728,3975.5,3975.4,0.448]
[1760561209026,2.51540686,3975.5,3975.4,0.448]
[1760561209934,2.64100686,3975.5,3975.4,0.448]
[1760561210669,2.64100686,3975.5,3975.4,0.002]
[1760561211359,12.86900686,3975.5,3975.4,0.002]
[1760561211559,13.50260686,3975.5,3975.4,0.002]
[1760561211735,13.47600686,3975.5,3975.4,0.002]
[1760561212247,2.51591315,3974.7,3974.6,0.002]
[1760561212422,4.24391315,3974.7,3974.6,0.002]
[1760561212628,12.74391315,3974.7,3974.6,0.002]
[1760561213643,4.24391315,3974.7,3974.6,0.002]
[1760561213965,12.74391315,3974.7,3974.6,0.4423]
[1760561214169,4.24391315,3974.7,3974.6,0.002]
[1760561215030,13.47661315,3974.7,3974.6,0.002]
[1760561215251,13.37751315,3974.7,3974.6,0.002]
[1760561215645,2.51648296,3973.8,3973.7,0.2313]
[1760561215860,0.0991,3974.7,3973.7,0.2313]
[1760561215861,10.47340161,3974.8,3973.8,0.4367]
[1760561216060,2.51557379,3975.3,3973.8,0.4367]
[1760561216061,2.51568391,3975.1,3973.8,0.4367]
[1760561216240,10.47340161,3975.3,3973.8,0.4367]
[1760561216441,10.0,3975.1,3973.8,0.4367]
[1760561216636,1.728,3974.4,3973.8,0.4367]
[1760561216968,2.51608914,3974.5,3974.3,0.2313]
[1760561217168,1.728,3975.1,3974.3,0.2313]
[1760561217349,2.51610305,3974.4,3974.3,0.2313]
[1760561218486,2.51559669,3975.2,3974.3,0.2313]
[1760561218487,2.51585398,3974.8,3974.6,0.002]
[1760561218685,2.51528032,3975.7,3974.7,0.4367]
[1760561218981,2.51528032,3975.7,3974.6,0.002]
[1760561218982,2.51591315,3974.7,3974.6,0.002]
[1760561219294,12.74391315,3974.7,3974.6,0.002]
[1760561219602,12.84301315,3974.7,3974.6,0.002]
[1760561219803,12.74391315,3974.7,3974.6,0.002]
[1760561221095,4.24391315,3974.7,3974.6,0.002]
[1760561221308,12.74391315,3974.7,3974.6,0.002]
[1760561221791,8.34991315,3974.7,3974.6,0.002]
[1760561221979,12.74391315,3974.7,3974.6,0.002]
[1760561222961,13.47691315,3974.7,3974.6,0.002]
[1760561223391,11.01641963,3973.9,3973.8,0.002]
[1760561223591,12.74441963,3973.9,3973.8,0.002]
[1760561225720,13.37801963,3973.9,3973.8,0.002]
[1760561225911,12.74441963,3973.9,3973.8,0.002]
[1760561226086,4.24441963,3973.9,3973.8,0.002]
[1760561226283,22.74441963,3973.9,3973.8,0.002]
[1760561226483,12.74441963,3973.9,3973.8,0.002]
[1760561226786,13.47741963,3973.9,3973.8,0.002]
[1760561227520,13.37801963,3973.9,3973.8,0.002]
[1760561227808,12.74441963,3973.9,3973.8,0.002]
[1760561228516,10.228,3973.9,3973.8,0.002]
[1760561228710,12.74441963,3973.9,3973.8,0.002]
[1760561228883,12.44741963,3973.9,3973.8,0.002]
[1760561229280,4.24441963,3973.9,3973.8,0.4387]
[1760561229703,1.728,3973.9,3973.8,0.4387]
[1760561229912,4.24441963,3973.9,3973.8,0.4387]
[1760561230589,1.728,3973.9,3973.8,0.4387]
[1760561230987,4.24441963,3973.9,3973.8,0.4387]
[1760561231702,12.76950632,3973.9,3973.8,0.002]
[1760561232013,12.74441963,3973.9,3973.8,0.002]
[1760561232325,12.74441963,3973.9,3972.3,0.4367]
[1760561232326,2.51736985,3972.4,3972.3,0.4367]
[1760561232491,11.01755998,3972.1,3972.0,0.2241]
[1760561232828,8.5,3971.9,3971.2,0.4367]
[1760561233000,2.51780777,3971.8,3971.2,0.4367]
[1760561233187,1.728,3972.2,3971.3,2.51805253]
[1760561233390,0.1072,3973.5,3972.2,2.51744925]
[1760561233689,0.099,3974.2,3972.1,0.2313]
[1760561233690,4.24478052,3973.4,3972.3,0.4367]
[1760561233891,1.728,3973.1,3972.3,0.4367]
[1760561234107,8.5,3973.6,3972.3,0.4367]
[1760561234289,2.51636215,3974.0,3973.9,0.2313]
[1760561234494,8.5,3974.6,3973.6,0.2313]
[1760561234690,2.51654629,3973.7,3973.6,0.2313]
[1760561234931,8.5,3974.4,3973.6,0.2313]
[1760561235096,2.5163995,3974.0,3973.6,0.668]
[1760561235300,0.12418669,3973.9,3972.3,0.4367]
[1760561235613,2.51720882,3972.7,3972.3,0.4367]
[1760561235809,0.02508669,3972.6,3972.3,0.4367]
[1760561236028,8.5,3973.2,3972.3,0.4367]
[1760561236341,10.0,3973.4,3971.8,0.4367]
[1760561236342,2.5174966,3972.2,3971.8,0.4367]
[1760561236495,1.728,3972.4,3971.8,0.4367]
[1760561236696,1.728,3972.4,3972.1,0.668]
[1760561236919,2.51680305,3973.3,3972.1,0.668]
[1760561236920,0.6336,3973.6,3972.3,0.002]
[1760561237226,1.728,3972.9,3972.3,0.002]
[1760561237453,4.24536985,3972.4,3972.3,0.002]
[1760561237953,10.1071,3973.5,3972.3,0.4387]
[1760561238162,1.728,3972.9,3972.3,0.4387]
[1760561238461,10.0,3974.0,3972.3,0.75745465]
[1760561238661,8.5,3974.0,3972.4,0.4367]
[1760561238958,0.001,3974.2,3972.8,2.5170996]
[1760561238959,2.51655942,3973.7,3972.8,2.5170996]
[1760561239121,4.24461864,3973.6,3972.9,0.4367]
[1760561239327,2.51662811,3973.6,3972.9,0.4367]
[1760561239654,10.0,3974.0,3972.6,0.4367]
[1760561239841,8.5,3974.1,3973.0,0.4367]
[1760561240045,1.728,3973.3,3973.1,0.2313]
[1760561240241,1.728,3973.5,3973.2,0.4367]
[1760561240442,1.728,3973.3,3973.2,0.4367]
[1760561240644,2.51686298,3973.2,3973.1,0.2313]
[1760561240845,1.728,3973.3,3972.3,0.002]
[1760561240846,0.02508669,3973.3,3972.7,0.45]
[1760561241061,2.51705939,3972.9,3972.4,0.45]
[1760561241252,2.54223267,3972.8,3972.4,0.45]
[1760561241629,2.54223267,3972.8,3972.5,0.45]
[1760561241832,2.54223267,3972.8,3972.3,0.002]
[1760561242039,2.51717975,3972.7,3972.6,0.45]
[1760561242363,4.24536985,3972.4,3972.3,0.002]
[1760561242580,1.728,3972.4,3972.3,0.002]
[1760561242986,0.1256,3972.6,3972.5,2.51730648]
[1760561243155,0.1256,3973.1,3972.5,0.9986727]
[1760561243340,0.1256,3973.1,3972.6,2.51721473]
[1760561243681,0.1256,3973.1,3972.7,0.45]
[1760561243880,0.1256,3973.1,3972.8,0.45]
[1760561244089,0.1256,3973.1,3972.9,0.45]
[1760561244380,2.51663065,3973.6,3972.9,0.45]
[1760561244683,1.728,3973.5,3972.9,0.45]
[1760561245087,2.51669729,3973.5,3972.9,0.45]
[1760561245251,10.228,3973.9,3973.0,0.2148]
[1760561245451,2.51675511,3973.4,3973.0,0.2148]
[1760561246046,2.51675511,3973.4,3973.1,0.45]
[1760561246243,2.51660404,3973.7,3973.0,0.2148]
[1760561246244,2.51659832,3973.7,3973.0,0.2148]
[1760561246591,0.001,3974.2,3973.2,0.45]
[1760561246772,1.728,3974.1,3973.2,0.45]
[1760561246945,0.001,3974.2,3973.2,0.45]
[1760561247143,0.001,3974.2,3973.3,2.51679014]
[1760561247144,2.51629299,3974.1,3973.3,2.51679014]
[1760561247355,0.001,3974.2,3973.2,0.45]
[1760561247356,1.728,3974.0,3973.2,0.45]
[1760561247569,0.001,3974.2,3973.3,0.02516799]
[1760561247861,0.001,3974.2,3974.1,0.2148]
[1760561248386,1.729,3974.2,3974.1,0.2148]
[1760561249450,1.729,3974.2,3974.1,0.6648]
[1760561249648,1.729,3974.2,3974.1,0.2148]
[1760561249874,1.729,3974.2,3974.1,0.6648]
[1760561250274,0.001,3974.2,3974.1,0.6648]
[1760561250473,0.001,3974.2,3974.1,3.75085187]
[1760561250694,0.001,3974.2,3974.1,1.23455888]
[1760561251011,0.001,3974.2,3974.1,3.75085187]
[1760561251164,0.001,3974.2,3974.1,1.23455888]
[1760561251561,0.001,3974.2,3974.1,3.75085187]
[1760561251765,0.001,3974.6,3974.5,2.51603975]
[1760561251994,0.001,3975.0,3974.9,2.51578656]
[1760561252385,0.001,3975.0,3974.9,2.96578656]
[1760561253214,0.001,3975.0,3974.9,2.99094442]
[1760561253514,0.001,3975.0,3974.9,2.96578656]
[1760561253885,0.001,3975.0,3974.9,3.62454442]
[1760561254086,0.001,3975.0,3974.9,4.21342769]
[1760561254286,0.001,3975.0,3974.9,4.33902769]
[1760561255202,0.001,3975.0,3974.9,6.09218555]
[1760561255522,0.001,3976.3,3976.2,0.6336]
[1760561255687,0.001,3976.3,3976.1,0.2148]
[1760561255887,0.001,3976.3,3976.2,2.83709365]
[1760561256158,0.001,3976.3,3976.2,3.26194401]
[1760561256588,0.001,3976.3,3976.2,0.74697998]
[1760561256812,0.001,3976.3,3976.2,0.45]
[1760561257215,0.001,3976.3,3976.2,2.96496403]
[1760561258691,0.001,3976.3,3976.1,0.2148]
[1760561258886,0.001,3976.3,3976.1,2.72982581]
[1760561259092,0.001,3976.3,3976.2,2.96496403]
[1760561259504,0.001,3976.3,3976.2,3.51829796]
[1760561259936,0.001,3976.3,3976.2,2.96496403]
[1760561260150,0.001,3976.3,3976.2,0.45]
[1760561260300,0.001,3976.3,3976.2,2.96496403]
[1760561261438,0.001,3976.3,3976.2,2.99011367]
[1760561261801,0.001,3976.3,3976.2,3.59856403]
[1760561262005,0.001,3976.3,3976.2,4.25288864]
[1760561262609,0.001,3976.3,3976.2,4.27803828]
[1760561264851,0.001,3976.3,3976.2,4.25288864]
[1760561265025,0.001,3976.3,3976.2,3.61928864]
[1760561265620,0.001,3976.3,3976.2,4.27803828]
[1760561265830,0.001,3976.3,3976.2,4.40363828]
[1760561266155,0.001,3976.3,3976.2,6.10648864]
[1760561272947,0.001,3976.3,3976.2,3.16928864]
[1760561273149,0.001,3976.3,3976.2,2.51496403]
[1760561273452,0.001,3976.3,3975.9,0.002]
[1760561274250,0.001,3976.3,3976.2,2.51496403]
[1760561274452,0.001,3976.3,3975.9,0.002]
[1760561274846,0.001,3976.3,3976.0,2.51509054]
[1760561275255,0.001,3976.3,3976.1,2.51501052]
[1760561275492,0.001,3976.3,3976.2,2.51496403]
[1760561276194,0.001,3976.3,3975.9,0.002]
[1760561276496,0.0994,3976.2,3975.9,0.002]
[1760561276800,0.0994,3976.2,3975.9,2.51714451]
[1760561277092,0.0994,3976.2,3975.9,0.002]
[1760561277562,0.001,3976.3,3975.9,0.002]
[1760561277563,0.0994,3976.1,3975.9,0.002]
[1760561277767,0.0994,3976.0,3975.9,0.002]
[1760561278085,0.001,3976.3,3975.9,0.002]
[1760561278283,0.001,3976.3,3976.2,2.51496403]
[1760561278598,0.1004,3976.3,3975.9,0.002]
[1760561278837,0.1004,3976.3,3975.9,2.51711114]
[1760561278977,0.1004,3976.3,3975.9,0.002]
[1760561279317,0.001,3976.3,3976.2,2.51496403]
[1760561279478,0.001,3976.3,3976.2,3.01816949]
[1760561279920,0.001,3976.3,3976.2,2.51496403]
[1760561280723,0.001,3976.3,3975.9,2.51715078]
[1760561281027,0.001,3976.3,3976.2,2.51496403]
[1760561283103,0.001,3976.3,3976.2,2.64056403]
[1760561283707,0.001,3976.3,3976.2,0.1256]
[1760561284011,0.001,3976.3,3976.2,2.64056403]
[1760561285112,0.001,3976.3,3976.2,3.15632822]
[1760561285414,0.001,3976.3,3976.2,2.64056403]
[1760561285596,0.001,3976.3,3976.2,2.51496403]
[1760561289038,0.001,3976.3,3975.9,0.002]
[1760561289183,0.0994,3976.2,3975.9,0.002]
[1760561289607,0.001,3976.3,3976.2,2.51496403]
[1760561290118,0.001,3976.3,3976.2,3.01816949]
[1760561290325,0.001,3976.3,3976.2,2.51496403]
[1760561290818,0.001,3976.3,3976.0,2.51509054]
[1760561291012,0.001,3976.3,3976.1,2.51502227]
[1760561291510,0.001,3976.3,3975.9,2.5171293]
[1760561291705,0.001,3976.3,3975.9,0.002]
[1760561292021,0.001,3976.3,3976.2,2.51496403]